[Event "Live Chess"]
[Site "Chess.com"]
[Date "2024.06.01"]
[Round "-"]
[White "Berdgross"]
[Black "TJ-W"]
[Result "0-1"]
[WhiteElo "570"]
[BlackElo "1574"]
[TimeControl "300"]
[EndTime "9:10:35 PDT"]
[Termination "TJ-W won by checkmate"]

1. e4 {[%clk 0:04:54.5]} 1... e5 {[%clk 0:04:58.8]} 2. d3 {[%clk 0:04:52.8]}
2... d5 {[%clk 0:04:55.6]} 3. exd5 {[%clk 0:04:50.1]} 3... Qxd5 {[%clk
0:04:53.7]} 4. Nf3 {[%clk 0:04:48.3]} 4... Bg4 {[%clk 0:04:51.7]} 5. Be2 {[%clk
0:04:46.5]} 5... Nf6 {[%clk 0:04:43.7]} 6. Nc3 {[%clk 0:04:41.7]} 6... Qc6
{[%clk 0:04:34]} 7. Nxe5 {[%clk 0:04:36]} 7... Bxe2 {[%clk 0:04:32.6]} 8. Nxc6
{[%clk 0:04:29.5]} 8... Bxd1 {[%clk 0:04:31.8]} 9. Nxd1 {[%clk 0:04:23.2]} 9...
Nxc6 {[%clk 0:04:30.3]} 10. O-O {[%clk 0:04:20.6]} 10... O-O-O {[%clk
0:04:26.9]} 11. Bg5 {[%clk 0:04:16.4]} 11... h6 {[%clk 0:04:24.4]} 12. Bxf6
{[%clk 0:04:14.9]} 12... gxf6 {[%clk 0:04:24.3]} 13. Ne3 {[%clk 0:04:11.2]}
13... Bd6 {[%clk 0:04:19.6]} 14. a3 {[%clk 0:04:06.2]} 14... h5 {[%clk 0:04:18]}
15. g3 {[%clk 0:04:03.3]} 15... h4 {[%clk 0:04:05.1]} 16. Nd5 {[%clk 0:03:52.1]}
16... hxg3 {[%clk 0:03:58.4]} 17. fxg3 {[%clk 0:03:49.8]} 17... Bc5+ {[%clk
0:03:50.6]} 18. Kh1 {[%clk 0:03:42.6]} 18... Rh6 {[%clk 0:03:43.8]} 19. Rxf6
{[%clk 0:03:34.2]} 19... Rdh8 {[%clk 0:03:32.1]} 20. Rxh6 {[%clk 0:03:32.2]}
20... Rxh6 {[%clk 0:03:26.1]} 21. b4 {[%clk 0:03:21.1]} 21... Bd4 {[%clk
0:03:21.6]} 22. Rf1 {[%clk 0:03:12.2]} 22... Ne5 {[%clk 0:03:18.6]} 23. Ne7+
{[%clk 0:03:08.7]} 23... Kd8 {[%clk 0:03:07]} 24. Nf5 {[%clk 0:03:07.4]} 24...
Rf6 {[%clk 0:02:52.4]} 25. Kg2 {[%clk 0:02:53.8]} 25... Ng4 {[%clk 0:02:42.1]}
26. Nxd4 {[%clk 0:02:46.1]} 26... Ne3+ {[%clk 0:02:40.8]} 27. Kg1 {[%clk
0:02:37.9]} 27... Rxf1# {[%clk 0:02:40]} 0-1

[Event "Live Chess"]
[Site "Chess.com"]
[Date "2024.06.01"]
[Round "-"]
[White "DJ_Lambton"]
[Black "TheRedDrag"]
[Result "0-1"]
[WhiteElo "1749"]
[BlackElo "2186"]
[TimeControl "300"]
[EndTime "9:11:21 PDT"]
[Termination "TheRedDrag won by resignation"]

1. c4 {[%clk 0:04:59.4]} 1... Nf6 {[%clk 0:04:58.7]} 2. g3 {[%clk 0:04:58.8]}
2... g6 {[%clk 0:04:58.2]} 3. Bg2 {[%clk 0:04:58.3]} 3... Bg7 {[%clk 0:04:57.9]}
4. Nc3 {[%clk 0:04:57.9]} 4... O-O {[%clk 0:04:57.3]} 5. e3 {[%clk 0:04:57.5]}
5... e5 {[%clk 0:04:56.8]} 6. Nge2 {[%clk 0:04:57.1]} 6... c6 {[%clk 0:04:55.3]}
7. O-O {[%clk 0:04:56.7]} 7... d6 {[%clk 0:04:54.7]} 8. b3 {[%clk 0:04:56.4]}
8... Ne8 {[%clk 0:04:52.7]} 9. Bb2 {[%clk 0:04:56]} 9... f5 {[%clk 0:04:52.4]}
10. d4 {[%clk 0:04:55.3]} 10... e4 {[%clk 0:04:51.4]} 11. Nf4 {[%clk 0:04:54.4]}
11... Nf6 {[%clk 0:04:49.9]} 12. Rc1 {[%clk 0:04:53.1]} 12... g5 {[%clk
0:04:49.3]} 13. Nfe2 {[%clk 0:04:52.2]} 13... h6 {[%clk 0:04:43.1]} 14. Qc2
{[%clk 0:04:48.1]} 14... d5 {[%clk 0:04:42.1]} 15. cxd5 {[%clk 0:04:47.1]} 15...
cxd5 {[%clk 0:04:41]} 16. Rfd1 {[%clk 0:04:46.4]} 16... Nc6 {[%clk 0:04:40.2]}
17. a3 {[%clk 0:04:44.7]} 17... Nh5 {[%clk 0:04:38.7]} 18. b4 {[%clk 0:04:43.1]}
18... a6 {[%clk 0:04:36.5]} 19. Qb3 {[%clk 0:04:42.3]} 19... Be6 {[%clk
0:04:34.5]} 20. Na4 {[%clk 0:04:38.5]} 20... Qe7 {[%clk 0:04:32.2]} 21. Nc5
{[%clk 0:04:37.1]} 21... Bf7 {[%clk 0:04:31.2]} 22. Nc3 {[%clk 0:04:35.8]} 22...
Rad8 {[%clk 0:04:28.7]} 23. a4 {[%clk 0:04:30.9]} 23... f4 {[%clk 0:04:26.3]}
24. b5 {[%clk 0:04:29.4]} 24... axb5 {[%clk 0:04:21.6]} 25. axb5 {[%clk
0:04:28.6]} 25... Na5 {[%clk 0:04:20.4]} 26. Qa4 {[%clk 0:04:28]} 26... Nc4
{[%clk 0:04:12.4]} 27. Ba3 {[%clk 0:04:26.4]} 27... Nxa3 {[%clk 0:04:08.8]} 28.
Qxa3 {[%clk 0:04:26.3]} 28... fxe3 {[%clk 0:04:06.1]} 29. fxe3 {[%clk
0:04:21.4]} 29... b6 {[%clk 0:04:04.4]} 30. N3a4 {[%clk 0:04:17.2]} 30... bxc5
{[%clk 0:04:02.8]} 31. Nxc5 {[%clk 0:04:16.8]} 31... Rb8 {[%clk 0:03:55.8]} 32.
Rb1 {[%clk 0:04:15.7]} 32... Be8 {[%clk 0:03:50.6]} 33. b6 {[%clk 0:04:14.4]}
33... Bc6 {[%clk 0:03:48.1]} 34. Qa7 {[%clk 0:04:10.7]} 34... Qxa7 {[%clk
0:03:42.8]} 35. bxa7 {[%clk 0:04:10.6]} 35... Ra8 {[%clk 0:03:42.3]} 36. Ra1
{[%clk 0:04:10.1]} 36... Rf7 {[%clk 0:03:38.2]} 37. Rdb1 {[%clk 0:04:06.9]}
37... Raxa7 {[%clk 0:03:32.6]} 38. Rxa7 {[%clk 0:04:05.3]} 38... Rxa7 {[%clk
0:03:32.4]} 39. Rb6 {[%clk 0:04:04.8]} 39... Be8 {[%clk 0:03:27]} 40. Rb8 {[%clk
0:04:02.1]} 40... Kf7 {[%clk 0:03:26]} 41. Bf1 {[%clk 0:03:57.3]} 41... Nf6
{[%clk 0:03:24.3]} 42. Bh3 {[%clk 0:03:55.4]} 42... g4 {[%clk 0:03:22.7]} 43.
Bg2 {[%clk 0:03:54.3]} 43... Bc6 {[%clk 0:03:19.5]} 44. Rc8 {[%clk 0:03:52]}
44... Bd7 {[%clk 0:03:16.5]} 45. Rb8 {[%clk 0:03:50.7]} 45... Ne8 {[%clk
0:03:09.6]} 46. h3 {[%clk 0:03:49.5]} 46... gxh3 {[%clk 0:03:08]} 47. Bf1 {[%clk
0:03:48.3]} 47... Nd6 {[%clk 0:03:05.7]} 48. Kh2 {[%clk 0:03:45]} 48... Ra2+
{[%clk 0:03:02.6]} 49. Kg1 {[%clk 0:03:43.7]} 49... h2+ {[%clk 0:02:59.1]} 50.
Kh1 {[%clk 0:03:42.2]} 50... Bg4 {[%clk 0:02:55.1]} 51. Bg2 {[%clk 0:03:33.1]}
51... Bf3 {[%clk 0:02:53.2]} 52. Kxh2 {[%clk 0:03:32.3]} 52... Rxg2+ {[%clk
0:02:50.5]} 53. Kh3 {[%clk 0:03:31.5]} 53... Re2 {[%clk 0:02:46.7]} 54. Rd8
{[%clk 0:03:30.2]} 54... Nf5 {[%clk 0:02:44.3]} 55. Rd7+ {[%clk 0:03:28.9]}
55... Kg6 {[%clk 0:02:42.3]} 56. g4 {[%clk 0:03:26.5]} 56... Nxe3 {[%clk
0:02:37.9]} 57. Rd6+ {[%clk 0:03:25.4]} 57... Bf6 {[%clk 0:02:36.4]} 58. Nd7
{[%clk 0:03:18.3]} 58... Bxg4+ {[%clk 0:02:35.3]} 59. Kg3 {[%clk 0:03:17.2]}
59... Bxd7 {[%clk 0:02:33.4]} 0-1

[Event "Live Chess"]
[Site "Chess.com"]
[Date "2024.06.01"]
[Round "-"]
[White "StoreySniper"]
[Black "Bob2pen"]
[Result "1-0"]
[WhiteElo "2523"]
[BlackElo "1911"]
[TimeControl "300"]
[EndTime "9:11:21 PDT"]
[Termination "StoreySniper won by checkmate"]

1. e4 {[%clk 0:04:54.9]} 1... e6 {[%clk 0:04:58.8]} 2. d4 {[%clk 0:04:53.4]}
2... d5 {[%clk 0:04:58]} 3. Nd2 {[%clk 0:04:51.9]} 3... Nf6 {[%clk 0:04:56.8]}
4. e5 {[%clk 0:04:50.8]} 4... Nfd7 {[%clk 0:04:55.8]} 5. f4 {[%clk 0:04:47.4]}
5... c5 {[%clk 0:04:54.4]} 6. c3 {[%clk 0:04:44.1]} 6... Nc6 {[%clk 0:04:53.6]}
7. Ndf3 {[%clk 0:04:42.9]} 7... Be7 {[%clk 0:04:52.8]} 8. Bd3 {[%clk 0:04:35.8]}
8... f5 {[%clk 0:04:51.4]} 9. Nh3 {[%clk 0:04:33.5]} 9... a6 {[%clk 0:04:47.2]}
10. O-O {[%clk 0:04:32.2]} 10... b5 {[%clk 0:04:45.9]} 11. a3 {[%clk 0:04:23.1]}
11... b4 {[%clk 0:04:35.8]} 12. axb4 {[%clk 0:04:20.9]} 12... cxb4 {[%clk
0:04:33.4]} 13. Bd2 {[%clk 0:04:19.7]} 13... bxc3 {[%clk 0:04:30.2]} 14. bxc3
{[%clk 0:04:18.6]} 14... O-O {[%clk 0:04:27.4]} 15. Kh1 {[%clk 0:04:15.1]} 15...
Nb6 {[%clk 0:04:22.1]} 16. Rg1 {[%clk 0:04:13.5]} 16... Kh8 {[%clk 0:04:19.3]}
17. g4 {[%clk 0:04:11.9]} 17... Nc4 {[%clk 0:04:13.8]} 18. gxf5 {[%clk
0:04:09.8]} 18... exf5 {[%clk 0:04:07.1]} 19. Bc1 {[%clk 0:03:57.7]} 19... Be6
{[%clk 0:04:02.1]} 20. Ra2 {[%clk 0:03:56.3]} 20... g6 {[%clk 0:03:59.2]} 21.
Rag2 {[%clk 0:03:44.7]} 21... a5 {[%clk 0:03:53.6]} 22. Nfg5 {[%clk 0:03:37.3]}
22... Bg8 {[%clk 0:03:51.1]} 23. Qe1 {[%clk 0:03:10.1]} 23... a4 {[%clk
0:03:48.6]} 24. Qh4 {[%clk 0:03:08.4]} 24... a3 {[%clk 0:03:40.1]} 25. Qh6
{[%clk 0:03:06.8]} 25... a2 {[%clk 0:03:32.3]} 26. Nxh7 {[%clk 0:02:59.9]} 26...
Bxh7 {[%clk 0:03:29.2]} 27. Rxg6 {[%clk 0:02:59.1]} 27... Rf7 {[%clk 0:03:10.6]}
28. Rg7 {[%clk 0:02:50.8]} 28... Qf8 {[%clk 0:03:04.2]} 29. Qxh7# {[%clk
0:02:49.1]} 1-0

[Event "Live Chess"]
[Site "Chess.com"]
[Date "2024.06.01"]
[Round "-"]
[White "Pedrada88"]
[Black "Eva3337"]
[Result "1-0"]
[WhiteElo "2550"]
[BlackElo "1127"]
[TimeControl "300"]
[EndTime "9:11:41 PDT"]
[Termination "Pedrada88 won by resignation"]

1. e4 {[%clk 0:04:56.7]} 1... Nc6 {[%clk 0:04:53.2]} 2. Nf3 {[%clk 0:04:55.9]}
2... d6 {[%clk 0:04:46.1]} 3. Bb5 {[%clk 0:04:54.5]} 3... Bd7 {[%clk 0:04:44.5]}
4. d4 {[%clk 0:04:49.2]} 4... a6 {[%clk 0:04:43.2]} 5. Bxc6 {[%clk 0:04:48]}
5... Bxc6 {[%clk 0:04:39.8]} 6. d5 {[%clk 0:04:47.3]} 6... Bd7 {[%clk
0:04:31.9]} 7. e5 {[%clk 0:04:46.5]} 7... e6 {[%clk 0:04:25.5]} 8. O-O {[%clk
0:04:43]} 8... Nh6 {[%clk 0:03:54]} 9. Re1 {[%clk 0:04:40.5]} 9... Nf5 {[%clk
0:03:50.2]} 10. Nc3 {[%clk 0:04:37.7]} 10... g6 {[%clk 0:03:42.2]} 11. Bg5
{[%clk 0:04:36]} 11... Be7 {[%clk 0:03:37.6]} 12. Qd2 {[%clk 0:04:28.4]} 12...
h6 {[%clk 0:03:27.2]} 13. Bxe7 {[%clk 0:04:24.8]} 13... Qxe7 {[%clk 0:03:24.3]}
14. exd6 {[%clk 0:04:23.5]} 14... cxd6 {[%clk 0:03:20.6]} 15. dxe6 {[%clk
0:04:22.2]} 15... Bxe6 {[%clk 0:03:13.9]} 16. Nd5 {[%clk 0:04:21.2]} 16... Qd8
{[%clk 0:03:03.2]} 17. Qc3 {[%clk 0:04:20]} 17... Kd7 {[%clk 0:02:17.5]} 18.
Nf6+ {[%clk 0:04:12]} 18... Ke7 {[%clk 0:02:15.2]} 19. Rad1 {[%clk 0:04:11.2]}
19... Rc8 {[%clk 0:02:05.5]} 20. Nd5+ {[%clk 0:04:09.6]} 20... Kd7 {[%clk
0:01:58.1]} 21. Qb4 {[%clk 0:04:00.1]} 21... Bxd5 {[%clk 0:01:47.9]} 22. Rxd5
{[%clk 0:04:00]} 22... Re8 {[%clk 0:01:46.4]} 23. Red1 {[%clk 0:03:51.8]} 23...
Re6 {[%clk 0:01:27]} 24. Qxb7+ {[%clk 0:03:47.4]} 24... Rc7 {[%clk 0:01:23.1]}
25. Qxa6 {[%clk 0:03:45.3]} 25... Rxc2 {[%clk 0:01:19.5]} 26. Qa4+ {[%clk
0:03:43.5]} 26... Rc6 {[%clk 0:01:16.5]} 27. Ne5+ {[%clk 0:03:39.9]} 27... Rxe5
{[%clk 0:00:55.7]} 28. Rxe5 {[%clk 0:03:38.4]} 28... Qb6 {[%clk 0:00:41.8]} 29.
Rb5 {[%clk 0:03:35.9]} 29... Qc7 {[%clk 0:00:35.9]} 30. g4 {[%clk 0:03:30.7]}
30... Nh4 {[%clk 0:00:26]} 31. Qf4 {[%clk 0:03:27.3]} 31... Rc1 {[%clk
0:00:19.1]} 32. Qxf7+ {[%clk 0:03:24.9]} 32... Kc6 {[%clk 0:00:15.9]} 33. Rxc1+
{[%clk 0:03:23.4]} 33... Kxb5 {[%clk 0:00:13.9]} 34. Qxc7 {[%clk 0:03:22.8]} 1-0

[Event "Live Chess"]
[Site "Chess.com"]
[Date "2024.06.01"]
[Round "-"]
[White "Bazzza132"]
[Black "TigerTank70"]
[Result "1-0"]
[WhiteElo "1713"]
[BlackElo "2179"]
[TimeControl "300"]
[EndTime "9:11:58 PDT"]
[Termination "Bazzza132 won - game abandoned"]

1. d4 {[%clk 0:04:56.9]} 1... d5 {[%clk 0:04:58.9]} 2. c4 {[%clk 0:04:56.2]}
2... e5 {[%clk 0:04:57.7]} 3. dxe5 {[%clk 0:04:54]} 3... d4 {[%clk 0:04:56.7]}
4. e3 {[%clk 0:04:51.9]} 4... Bb4+ {[%clk 0:04:54.7]} 5. Bd2 {[%clk 0:04:50]}
5... dxe3 {[%clk 0:04:54.3]} 6. Bxb4 {[%clk 0:04:30.7]} 6... exf2+ {[%clk
0:04:51.6]} 7. Ke2 {[%clk 0:04:29.4]} 7... fxg1=Q {[%clk 0:04:46]} 8. Qxd8+
{[%clk 0:04:24.2]} 8... Kxd8 {[%clk 0:04:45.5]} 9. Rxg1 {[%clk 0:04:22.8]} 9...
Nc6 {[%clk 0:04:44.1]} 10. Bc3 {[%clk 0:04:19.9]} 10... Bg4+ {[%clk 0:04:42.5]}
11. Kf2 {[%clk 0:04:18.2]} 11... Ke7 {[%clk 0:04:37.6]} 12. e6 {[%clk
0:04:14.6]} 12... f6 {[%clk 0:04:31]} 13. Bd3 {[%clk 0:04:09.6]} 13... Bxe6
{[%clk 0:04:29]} 14. Nd2 {[%clk 0:04:08.3]} 14... Kf7 {[%clk 0:04:27.3]} 15. Nf3
{[%clk 0:03:59.4]} 15... Rd8 {[%clk 0:04:22.9]} 16. Rad1 {[%clk 0:03:47]} 1-0

[Event "Live Chess"]
[Site "Chess.com"]
[Date "2024.06.01"]
[Round "-"]
[White "Inglaterra"]
[Black "nitrofish07"]
[Result "1-0"]
[WhiteElo "2052"]
[BlackElo "2123"]
[TimeControl "300"]
[EndTime "9:12:02 PDT"]
[Termination "Inglaterra won by resignation"]

1. c4 {[%clk 0:04:57.6]} 1... c6 {[%clk 0:04:58.7]} 2. Nf3 {[%clk 0:04:56.3]}
2... d5 {[%clk 0:04:58.2]} 3. g3 {[%clk 0:04:56]} 3... Nf6 {[%clk 0:04:57.7]} 4.
Bg2 {[%clk 0:04:55.3]} 4... Bg4 {[%clk 0:04:57.1]} 5. O-O {[%clk 0:04:54.4]}
5... Bxf3 {[%clk 0:04:56.7]} 6. Bxf3 {[%clk 0:04:53.3]} 6... e6 {[%clk
0:04:56.2]} 7. b3 {[%clk 0:04:51.2]} 7... Be7 {[%clk 0:04:53]} 8. Bb2 {[%clk
0:04:50.1]} 8... O-O {[%clk 0:04:52.2]} 9. d3 {[%clk 0:04:49.3]} 9... Nbd7
{[%clk 0:04:51.3]} 10. Nd2 {[%clk 0:04:48.6]} 10... a5 {[%clk 0:04:50]} 11. Rc1
{[%clk 0:04:43]} 11... a4 {[%clk 0:04:49.3]} 12. Qc2 {[%clk 0:04:38.5]} 12...
Rc8 {[%clk 0:04:41.2]} 13. e4 {[%clk 0:04:36.6]} 13... e5 {[%clk 0:04:33.4]} 14.
Bg2 {[%clk 0:04:19.1]} 14... b5 {[%clk 0:04:23.6]} 15. bxa4 {[%clk 0:03:49.1]}
15... bxc4 {[%clk 0:03:59.5]} 16. dxc4 {[%clk 0:03:44.2]} 16... d4 {[%clk
0:03:53.2]} 17. f4 {[%clk 0:03:33.8]} 17... c5 {[%clk 0:03:50.4]} 18. h3 {[%clk
0:03:29.4]} 18... Qa5 {[%clk 0:03:42]} 19. Nf3 {[%clk 0:03:22.1]} 19... Bd6
{[%clk 0:03:30.2]} 20. f5 {[%clk 0:03:11.9]} 20... Ra8 {[%clk 0:03:27.4]} 21. a3
{[%clk 0:03:06.2]} 21... Qxa4 {[%clk 0:03:25.8]} 22. Qe2 {[%clk 0:02:59.5]}
22... Rfb8 {[%clk 0:03:20.8]} 23. g4 {[%clk 0:02:51.4]} 23... Qb3 {[%clk
0:03:19]} 24. Ba1 {[%clk 0:02:48.5]} 24... Rxa3 {[%clk 0:03:12.4]} 25. Nh2
{[%clk 0:02:16.6]} 25... Ra2 {[%clk 0:03:04.2]} 26. Qe1 {[%clk 0:02:10.9]} 26...
Nb6 {[%clk 0:02:32.3]} 27. g5 {[%clk 0:02:05.5]} 27... Nh5 {[%clk 0:02:30.5]}
28. Bf3 {[%clk 0:01:39.5]} 28... Nf4 {[%clk 0:02:25.3]} 29. Qh4 {[%clk
0:01:37.3]} 29... Qe3+ {[%clk 0:02:12.4]} 30. Kh1 {[%clk 0:01:34.3]} 30... Qd2
{[%clk 0:01:44.6]} 31. Ng4 {[%clk 0:01:31.2]} 31... Nd7 {[%clk 0:01:00.7]} 32.
f6 {[%clk 0:01:29.4]} 32... g6 {[%clk 0:00:53.7]} 33. Rcd1 {[%clk 0:01:08.7]}
33... Qe3 {[%clk 0:00:46.6]} 34. Nxe3 {[%clk 0:00:50.3]} 34... dxe3 {[%clk
0:00:44]} 35. Rxd6 {[%clk 0:00:47]} 35... e2 {[%clk 0:00:33.9]} 36. Bxe2 {[%clk
0:00:43.2]} 1-0

[Event "Live Chess"]
[Site "Chess.com"]
[Date "2024.06.01"]
[Round "-"]
[White "ProfPoisson"]
[Black "ALEX_UA_69"]
[Result "0-1"]
[WhiteElo "1234"]
[BlackElo "1743"]
[TimeControl "300"]
[EndTime "9:12:03 PDT"]
[Termination "ALEX_UA_69 won on time"]

1. e4 {[%clk 0:04:55.4]} 1... e5 {[%clk 0:04:58.8]} 2. Nf3 {[%clk 0:04:52.8]}
2... Nc6 {[%clk 0:04:58]} 3. d4 {[%clk 0:04:50.1]} 3... exd4 {[%clk 0:04:56.6]}
4. Bc4 {[%clk 0:04:48.4]} 4... d6 {[%clk 0:04:55.5]} 5. Nxd4 {[%clk 0:04:42.3]}
5... Nxd4 {[%clk 0:04:54.5]} 6. Qxd4 {[%clk 0:04:40.9]} 6... Qf6 {[%clk
0:04:53.5]} 7. Be3 {[%clk 0:04:34.4]} 7... Be7 {[%clk 0:04:51.8]} 8. Nc3 {[%clk
0:04:29.4]} 8... Qxd4 {[%clk 0:04:47.9]} 9. Bxd4 {[%clk 0:04:27]} 9... Bf6
{[%clk 0:04:46.3]} 10. Bxf6 {[%clk 0:04:19.9]} 10... Nxf6 {[%clk 0:04:44.8]} 11.
O-O-O {[%clk 0:04:19.3]} 11... O-O {[%clk 0:04:43.2]} 12. f3 {[%clk 0:04:11.7]}
12... a6 {[%clk 0:04:41.9]} 13. g4 {[%clk 0:04:10.2]} 13... b5 {[%clk
0:04:39.4]} 14. Bd5 {[%clk 0:04:01.6]} 14... Rb8 {[%clk 0:04:36.8]} 15. g5
{[%clk 0:03:51.7]} 15... Nd7 {[%clk 0:04:33.8]} 16. h4 {[%clk 0:03:49.1]} 16...
Ne5 {[%clk 0:04:31.5]} 17. f4 {[%clk 0:03:33.2]} 17... Nd7 {[%clk 0:04:30]} 18.
f5 {[%clk 0:03:24]} 18... Ne5 {[%clk 0:04:26.8]} 19. h5 {[%clk 0:03:20.7]} 19...
c6 {[%clk 0:04:25.5]} 20. Bb3 {[%clk 0:03:10.8]} 20... Bb7 {[%clk 0:04:21.6]}
21. h6 {[%clk 0:03:05.5]} 21... g6 {[%clk 0:04:16.9]} 22. fxg6 {[%clk
0:03:03.3]} 22... Nxg6 {[%clk 0:04:13.1]} 23. Rxd6 {[%clk 0:02:56.4]} 23... c5
{[%clk 0:04:11]} 24. Bd5 {[%clk 0:02:49.5]} 24... b4 {[%clk 0:04:07]} 25. Bxb7
{[%clk 0:02:45.4]} 25... bxc3 {[%clk 0:04:01]} 26. Bd5 {[%clk 0:02:34.9]} 26...
cxb2+ {[%clk 0:03:59.6]} 27. Kb1 {[%clk 0:02:33.1]} 27... Nf4 {[%clk 0:03:57.9]}
28. Bb3 {[%clk 0:02:26.1]} 28... c4 {[%clk 0:03:49]} 29. Bxc4 {[%clk 0:02:23.3]}
29... a5 {[%clk 0:03:40.3]} 30. Rf1 {[%clk 0:02:20.2]} 30... Ng6 {[%clk
0:03:35.8]} 31. Rd7 {[%clk 0:02:05]} 31... Ne5 {[%clk 0:03:31.1]} 32. Rc7 {[%clk
0:01:58.5]} 32... a4 {[%clk 0:03:27.2]} 33. g6 {[%clk 0:01:46.1]} 33... hxg6
{[%clk 0:03:18.1]} 34. Rc5 {[%clk 0:01:34.2]} 34... Nxc4 {[%clk 0:03:12.8]} 35.
Rxc4 {[%clk 0:01:32.4]} 35... a3 {[%clk 0:03:11.1]} 36. Ra4 {[%clk 0:01:30.5]}
36... Rfe8 {[%clk 0:03:07.3]} 37. Re1 {[%clk 0:01:26.4]} 37... Kh7 {[%clk
0:03:04.7]} 38. Rxa3 {[%clk 0:01:22.8]} 38... Re5 {[%clk 0:03:02.9]} 39. Rb3
{[%clk 0:01:18.8]} 39... Reb5 {[%clk 0:03:01.4]} 40. Kxb2 {[%clk 0:01:13.6]}
40... Kxh6 {[%clk 0:02:59]} 41. e5 {[%clk 0:01:09]} 41... Kg7 {[%clk 0:02:57.7]}
42. a4 {[%clk 0:01:05.5]} 42... R5b7 {[%clk 0:02:53.9]} 43. Ra1 {[%clk
0:01:02.1]} 43... Kf8 {[%clk 0:02:52.1]} 44. a5 {[%clk 0:01:00.9]} 44... Rxb3+
{[%clk 0:02:50.1]} 45. cxb3 {[%clk 0:00:58.6]} 45... Ke7 {[%clk 0:02:47.9]} 46.
a6 {[%clk 0:00:57.5]} 46... Ra8 {[%clk 0:02:46.2]} 47. b4 {[%clk 0:00:56.4]}
47... Ke6 {[%clk 0:02:45.5]} 48. b5 {[%clk 0:00:55.7]} 48... Kd7 {[%clk
0:02:44.2]} 49. b6 {[%clk 0:00:54.6]} 49... Kc6 {[%clk 0:02:42.6]} 50. b7 {[%clk
0:00:49.1]} 50... Rb8 {[%clk 0:02:38.6]} 51. Kc3 {[%clk 0:00:42.9]} 51... Kb6
{[%clk 0:02:33.8]} 52. Kd4 {[%clk 0:00:37.7]} 52... Ka7 {[%clk 0:02:31.8]} 53.
Kd5 {[%clk 0:00:35.6]} 53... Rd8+ {[%clk 0:02:29.9]} 54. Kc6 {[%clk 0:00:33.4]}
54... Rd2 {[%clk 0:02:28.5]} 55. Kc7 {[%clk 0:00:24.3]} 55... Rc2+ {[%clk
0:02:27.1]} 56. Kd8 {[%clk 0:00:23]} 56... Re2 {[%clk 0:02:24.9]} 57. Kc8 {[%clk
0:00:18.5]} 57... Rc2+ {[%clk 0:02:22.4]} 58. Kd7 {[%clk 0:00:16.8]} 58... Rc5
{[%clk 0:02:21.2]} 59. Ke7 {[%clk 0:00:16.5]} 59... Rxe5+ {[%clk 0:02:19.8]} 60.
Kxf7 {[%clk 0:00:15.4]} 60... g5 {[%clk 0:02:18.4]} 61. b8=Q+ {[%clk 0:00:11.3]}
61... Kxb8 {[%clk 0:02:16.6]} 62. Kf6 {[%clk 0:00:10.6]} 62... Rb5 {[%clk
0:02:14.1]} 63. a7+ {[%clk 0:00:07.3]} 63... Ka8 {[%clk 0:02:12.8]} 64. Rg1
{[%clk 0:00:04.5]} 64... Rb6+ {[%clk 0:02:09.2]} 65. Kxg5 {[%clk 0:00:01.9]}
65... Kxa7 {[%clk 0:02:08.4]} 66. Rf1 {[%clk 0:00:00.6]} 66... Ka6 {[%clk
0:02:06.4]} 67. Rf7 {[%clk 0:00:00.5]} 67... Ka5 {[%clk 0:02:05.2]} 0-1

[Event "Live Chess"]
[Site "Chess.com"]
[Date "2024.06.01"]
[Round "-"]
[White "NAZRIZ1977"]
[Black "akp42"]
[Result "0-1"]
[WhiteElo "2136"]
[BlackElo "1988"]
[TimeControl "300"]
[EndTime "9:12:16 PDT"]
[Termination "akp42 won by resignation"]

1. d4 {[%clk 0:04:55.7]} 1... Nf6 {[%clk 0:04:58.1]} 2. Nc3 {[%clk 0:04:53.6]}
2... d5 {[%clk 0:04:54.3]} 3. Bf4 {[%clk 0:04:52.4]} 3... e6 {[%clk 0:04:53.5]}
4. e3 {[%clk 0:04:51.4]} 4... Bd6 {[%clk 0:04:52.4]} 5. Nf3 {[%clk 0:04:47.7]}
5... Bxf4 {[%clk 0:04:49.4]} 6. exf4 {[%clk 0:04:46.6]} 6... Qd6 {[%clk
0:04:47.3]} 7. Qd2 {[%clk 0:04:41.7]} 7... O-O {[%clk 0:04:44.2]} 8. O-O-O
{[%clk 0:04:40.5]} 8... Nbd7 {[%clk 0:04:42.6]} 9. Ne5 {[%clk 0:04:37.6]} 9...
c5 {[%clk 0:04:40.8]} 10. dxc5 {[%clk 0:04:36.7]} 10... Nxc5 {[%clk 0:04:39.1]}
11. Bd3 {[%clk 0:04:35.2]} 11... Nxd3+ {[%clk 0:04:33.6]} 12. Qxd3 {[%clk
0:04:34.1]} 12... a6 {[%clk 0:04:31.8]} 13. g4 {[%clk 0:04:25.4]} 13... b5
{[%clk 0:04:24.6]} 14. f3 {[%clk 0:04:24.4]} 14... b4 {[%clk 0:04:20.7]} 15. Ne2
{[%clk 0:04:06.2]} 15... a5 {[%clk 0:04:16.2]} 16. Nd4 {[%clk 0:04:05.1]} 16...
Ba6 {[%clk 0:04:14.9]} 17. Qe3 {[%clk 0:04:02.1]} 17... Rfc8 {[%clk 0:04:09.8]}
18. Kb1 {[%clk 0:04:00.6]} 18... a4 {[%clk 0:04:06.7]} 19. h4 {[%clk 0:03:59.2]}
19... Nd7 {[%clk 0:03:47.8]} 20. h5 {[%clk 0:03:46.4]} 20... a3 {[%clk
0:03:35.7]} 21. b3 {[%clk 0:03:44.9]} 21... Rc3 {[%clk 0:03:26.6]} 22. Qe1
{[%clk 0:03:28]} 22... Rac8 {[%clk 0:03:20.8]} 23. Rd2 {[%clk 0:03:26.8]} 23...
Nxe5 {[%clk 0:03:11.6]} 24. fxe5 {[%clk 0:03:25.7]} 24... Qb6 {[%clk 0:02:55.5]}
25. g5 {[%clk 0:03:20.8]} 25... Bd3 {[%clk 0:02:48.8]} 26. Rxd3 {[%clk
0:02:41.9]} 26... Rxd3 {[%clk 0:02:45.9]} 27. cxd3 {[%clk 0:02:41.2]} 27... Qxd4
{[%clk 0:02:44.2]} 28. Rh2 {[%clk 0:02:38.5]} 28... Qxd3+ {[%clk 0:02:41.1]} 0-1